bitfinex/quotes_SOLUSD_20251103
["timestamp","ask_amount","ask_price","bid_price","bid_amount"]
[1762186488456,7.48813635,168.47,168.41,0.2]
[1762186488655,0.84216157,168.5,168.41,0.2]
[1762186488656,7.48813635,168.46,168.41,0.2]
[1762186488835,7.48813635,168.47,168.41,7.68813635]
[1762186489031,0.7,168.49,168.41,7.68813635]
[1762186489358,7.48813635,168.47,168.41,0.2]
[1762186489528,5.93612727,168.46,168.41,0.2]
[1762186489859,7.48813635,168.44,168.41,0.2]
[1762186490033,8.18813635,168.45,168.41,0.2]
[1762186490233,7.48813635,168.44,168.41,0.2]
[1762186490436,8.18813635,168.44,168.41,0.2]
[1762186490641,7.48813635,168.42,168.39,0.2]
[1762186490838,0.14216157,168.39,168.3,7.48813635]
[1762186491145,7.48813635,168.33,168.27,7.48813635]
[1762186491457,7.48813635,168.32,168.26,7.48813635]
[1762186491764,0.7,168.33,168.29,7.48813635]
[1762186491933,0.7,168.36,168.32,7.48813635]
[1762186492134,8.18813635,168.36,168.3,7.48813635]
[1762186492456,0.7,168.36,168.31,7.48813635]
[1762186492664,0.7,168.39,168.34,7.48813635]
[1762186492834,24.30858291,168.46,168.32,20.592]
[1762186493039,0.7,168.46,168.41,7.48813635]
[1762186493249,0.7,168.45,168.31,0.66]
[1762186493455,9.88935732,168.55,168.31,21.252]
[1762186493456,0.7,168.49,168.31,21.252]
[1762186493637,6.63514339,168.49,168.36,5.93965312]
[1762186493845,6.63514339,168.49,168.36,20.78878593]
[1762186494049,28.26095556,168.49,168.37,0.66]
[1762186494246,7.48813635,168.46,168.4,7.48813635]
[1762186494477,8.18813635,168.48,168.42,7.48813635]
[1762186494654,7.48813635,168.46,168.35,21.252]
[1762186494952,7.48813635,168.45,168.35,0.66]
[1762186495136,7.48813635,168.43,168.37,7.48813635]
[1762186495336,0.7,168.44,168.27,14.85700544]
[1762186495644,7.48813635,168.44,168.38,7.48813635]
[1762186495860,0.7,168.43,168.39,7.48813635]
[1762186496160,0.7,168.43,168.38,7.48813635]
[1762186496533,0.7,168.43,168.39,7.48813635]
[1762186496974,0.7,168.43,168.38,7.48813635]
[1762186497453,0.7,168.46,168.42,7.48813635]
[1762186497837,0.7,168.46,168.44,7.48813635]
[1762186498030,6.63629517,168.46,168.36,0.66]
[1762186498247,14.12443152,168.46,168.4,7.48813635]
[1762186498462,14.12443152,168.46,168.38,0.66]
[1762186498463,0.7,168.46,168.38,0.66]
[1762186498666,0.7,168.5,168.45,7.48813635]
[1762186499464,7.48813635,168.48,168.36,0.66]
[1762186499668,5.9354226,168.48,168.44,7.48813635]
[1762186499962,0.7,168.47,168.43,7.48813635]
[1762186500260,0.7,168.47,168.44,7.48813635]
[1762186500461,0.7,168.47,168.37,0.66]
[1762186500654,7.48813635,168.42,168.36,7.48813635]
[1762186500965,0.7,168.43,168.36,7.48813635]
[1762186501164,0.7,168.43,168.2,1.99999999]
[1762186501165,0.7,168.41,168.2,1.99999999]
[1762186501368,0.7,168.41,168.15,33.30346646]
[1762186501369,7.48813635,168.36,168.26,0.66]
[1762186501550,7.48813635,168.33,168.27,7.48813635]
[1762186502064,0.7,168.32,168.27,7.48813635]
[1762186502241,8.18813635,168.32,168.26,7.48813635]
[1762186502552,0.7,168.32,168.26,7.48813635]
[1762186502748,0.69,168.36,168.3,7.48813635]
[1762186502961,0.69,168.36,168.31,7.48813635]
[1762186503161,7.48813635,168.32,168.22,0.2]
[1762186503368,7.48813635,168.27,168.22,0.2]
[1762186503549,0.14216157,168.28,168.22,0.2]
[1762186503740,0.14216157,168.35,168.26,7.48813635]
[1762186503938,0.69,168.35,168.23,0.7]
[1762186504160,4.68656668,168.39,168.34,7.48813635]
[1762186504475,7.48813635,168.35,168.23,0.7]
[1762186504647,7.48813635,168.34,168.28,7.48813635]
[1762186504851,7.48813635,168.32,168.23,0.7]
[1762186505053,0.14216157,168.37,168.29,7.48813635]
[1762186505359,0.69,168.38,168.29,0.7]
[1762186505540,0.69,168.38,168.25,20.592]
[1762186505541,8.17813635,168.38,168.25,20.592]
[1762186505742,5.93930035,168.37,168.32,7.48813635]
[1762186505947,5.93930035,168.37,168.33,7.48813635]
[1762186505948,0.69,168.37,168.33,7.48813635]
[1762186506540,0.69,168.37,168.32,7.48813635]
[1762186506945,0.69,168.37,168.33,7.48813635]
[1762186507277,7.48813635,168.34,168.27,7.48813635]
[1762186507452,4.71902279,168.39,168.33,7.48813635]
[1762186507771,4.71902279,168.39,168.22,15.9333495]
[1762186507772,13.42849514,168.34,168.28,7.48813635]
[1762186508153,0.69,168.35,168.31,7.48813635]
[1762186508374,0.69,168.34,168.24,0.7]
[1762186508554,7.48813635,168.31,168.25,7.48813635]
[1762186509052,0.69,168.3,168.25,7.48813635]
[1762186509243,0.69,168.33,168.28,7.48813635]
[1762186509448,0.69,168.38,168.32,7.48813635]
[1762186509640,0.69,168.38,168.29,0.7]
[1762186509844,0.69,168.43,168.37,7.48813635]
[1762186510067,8.17813635,168.43,168.29,0.7]
[1762186510277,7.48813635,168.41,168.35,7.48813635]
[1762186510474,5.49894906,168.43,168.23,9.78882769]
[1762186510475,7.48813635,168.39,168.33,7.48813635]
[1762186510643,0.69,168.39,168.29,0.7]
[1762186510845,0.69,168.38,168.33,7.48813635]
[1762186511054,8.17813635,168.38,168.32,7.48813635]
[1762186511249,7.48813635,168.34,168.28,7.48813635]
[1762186511462,7.48813635,168.35,168.29,7.48813635]
[1762186511648,5.94000594,168.35,168.32,7.48813635]
[1762186511861,6.62788967,168.41,168.34,7.48813635]
[1762186512049,21.47261385,168.41,168.28,20.592]
[1762186512248,6.62788967,168.41,168.28,20.592]
[1762186512460,0.69,168.4,168.35,7.48813635]
[1762186512669,0.69,168.45,168.39,7.48813635]
[1762186512848,0.69,168.49,168.44,7.48813635]
[1762186513054,0.69,168.49,168.46,7.48813635]
[1762186513262,8.17813635,168.52,168.45,7.48813635]
[1762186513577,10.82172273,168.56,168.36,20.592]
[1762186513578,7.48813635,168.48,168.36,20.592]
[1762186513875,13.42250226,168.51,168.45,7.48813635]
[1762186514078,7.48813635,168.47,168.37,0.7]
[1762186514260,9.78882769,168.49,168.28,0.7]
[1762186514465,9.78882769,168.49,168.33,7.48813635]
[1762186514466,7.48813635,168.39,168.33,7.48813635]
[1762186514677,8.17813635,168.38,168.32,7.48813635]
[1762186514856,0.69,168.38,168.33,7.48813635]
[1762186515051,0.69,168.38,168.28,0.7]
[1762186515257,0.69,168.43,168.36,7.48813635]
[1762186515459,7.48813635,168.41,168.35,7.48813635]
[1762186515667,6.6276707,168.42,168.31,5.94114294]
[1762186515976,6.6276707,168.42,168.37,7.48813635]
[1762186516169,0.69,168.47,168.32,0.7]
[1762186516483,7.48813635,168.44,168.38,7.48813635]
[1762186516674,7.48813635,168.42,168.36,7.48813635]
[1762186517015,3.91414928,168.46,168.41,7.48813635]
[1762186517286,0.69,168.49,168.45,7.48813635]
[1762186517582,0.69,168.49,168.46,7.48813635]
[1762186517779,0.69,168.49,168.39,0.7]
[1762186517780,6.62511314,168.49,168.39,0.7]
[1762186517987,9.85092682,168.5,168.39,0.7]
[1762186518278,3.91555771,168.51,168.39,0.7]
[1762186518755,6.62409601,168.52,168.39,0.7]
[1762186518957,0.69,168.55,168.5,7.48813635]
[1762186519164,7.48813635,168.53,168.47,7.48813635]
[1762186519784,7.48813635,168.5,168.39,20.592]
[1762186519987,20.77028069,168.51,168.43,7.48813635]
[1762186520152,12.10108712,168.5,168.38,21.292]
[1762186520358,8.41487782,168.46,168.4,8.41487782]
[1762186520554,8.41487782,168.45,168.39,8.41487782]
[1762186520795,0.69,168.48,168.42,8.41487782]
[1762186521000,3.92295077,168.5,168.46,8.41487782]
[1762186521174,3.92295077,168.51,168.47,8.41487782]
[1762186521488,11.31538732,168.55,168.5,8.41487782]
[1762186521690,0.69,168.55,168.53,8.41487782]
[1762186521868,8.41487782,168.58,168.54,8.41487782]
[1762186521869,5.93239023,168.57,168.54,8.41487782]
[1762186522069,9.86734689,168.59,168.54,8.41487782]
[1762186522271,8.41487782,168.55,168.48,8.41487782]
[1762186522468,8.41487782,168.55,168.31,29.24829144]
[1762186522469,8.41487782,168.51,168.46,8.41487782]
[1762186522678,3.93560753,168.53,168.47,8.41487782]
[1762186522878,0.69,168.53,168.49,8.41487782]
[1762186523296,0.69,168.58,168.52,8.41487782]
[1762186523580,4.63800433,168.58,168.5,0.7]
[1762186523786,5.9326056,168.56,168.45,0.7]
[1762186523987,3.94800433,168.55,168.45,0.7]
[1762186524197,3.94800433,168.54,168.45,0.7]
[1762186524509,4.88911713,168.57,168.45,0.7]
[1762186524510,4.63800433,168.56,168.45,21.292]
[1762186524696,8.41487782,168.54,168.48,8.41487782]
[1762186524891,8.41487782,168.52,168.41,0.7]
[1762186525103,3.94800433,168.51,168.46,8.41487782]
[1762186525393,3.94800433,168.5,168.45,8.41487782]
[1762186525566,12.36288215,168.49,168.43,8.41487782]
[1762186525768,9.88362512,168.48,168.43,8.41487782]
[1762186525971,3.94800433,168.47,168.43,8.41487782]
[1762186526171,3.94800433,168.47,168.33,9.78882769]
[1762186526172,3.95880774,168.46,168.33,9.78882769]
[1762186526387,3.96041186,168.45,168.4,8.41487782]
[1762186526590,3.96041186,168.44,168.36,20.592]
[1762186526799,12.37528968,168.43,168.33,0.7]
[1762186527097,3.96041186,168.42,168.37,8.41487782]
[1762186527394,3.96041186,168.42,168.33,0.7]
[1762186527395,4.66041186,168.41,168.33,0.7]
[1762186527592,4.66041186,168.41,168.22,2.19999999]
[1762186527593,12.37528968,168.4,168.3,0.69]
[1762186527801,9.89917665,168.39,168.33,8.41487782]
[1762186527984,3.96041186,168.38,168.31,8.41487782]
[1762186528173,4.66041186,168.37,168.33,8.41487782]
[1762186528375,3.96041186,168.36,168.26,20.592]
[1762186528573,0.7,168.38,168.35,8.41487782]
[1762186528777,12.37528968,168.37,168.24,0.69]
[1762186529086,3.96041186,168.36,168.31,8.41487782]
[1762186529293,8.41487782,168.34,168.24,0.69]
[1762186529490,8.41487782,168.34,168.22,0.2]
[1762186529491,8.41487782,168.3,168.22,0.2]
[1762186529695,12.37528968,168.29,168.22,0.2]
[1762186530000,3.96041186,168.28,168.22,8.61487782]
[1762186530198,8.41487782,168.24,168.22,0.2]
[1762186530507,9.11487782,168.27,168.22,0.2]
[1762186530686,10.97384497,168.28,168.22,0.2]
[1762186530687,13.08169022,168.26,168.22,0.2]
[1762186530892,18.20370551,168.23,168.22,0.2]
[1762186531087,0.14216157,168.22,168.15,8.61487782]
[1762186531288,8.41487782,168.18,168.15,0.2]
[1762186531489,8.41487782,168.19,168.15,0.2]
[1762186531814,5.94617789,168.18,168.15,0.2]
[1762186532111,6.64617789,168.18,168.15,0.2]
[1762186532478,0.68,168.17,168.15,0.2]
[1762186532692,12.37908795,168.16,168.15,0.2]
[1762186532913,3.96421013,168.16,168.15,0.2]
[1762186533078,3.96387424,168.19,168.15,8.61487782]
[1762186533274,0.68,168.19,168.15,0.2]
[1762186533479,13.05528385,168.18,168.15,0.2]
[1762186533692,12.37528385,168.17,168.15,0.2]
[1762186533891,3.96040603,168.16,168.15,0.2]
[1762186534090,0.68,168.22,168.15,8.61487782]
[1762186534304,3.96000546,168.23,168.21,8.41487782]
[1762186534518,3.96000546,168.25,168.16,0.67]
[1762186534680,9.90354518,168.25,168.16,0.67]
[1762186534883,12.37488328,168.24,168.18,8.41487782]
[1762186535080,0.68,168.27,168.23,8.41487782]
[1762186535392,3.95597952,168.28,168.16,0.67]
[1762186535595,8.41487782,168.25,168.19,8.41487782]
[1762186535801,3.95597952,168.26,168.15,0.2]
[1762186536006,0.68,168.26,168.15,0.2]
[1762186536203,8.41487782,168.23,168.15,0.2]
[1762186536406,8.41487782,168.23,168.17,8.41487782]
[1762186536611,9.09487782,168.22,168.16,8.41487782]
[1762186536817,8.41487782,168.2,168.15,0.2]
[1762186536990,8.41487782,168.19,168.15,0.2]
[1762186537186,8.41487782,168.17,168.15,0.2]
[1762186537526,0.68,168.18,168.15,0.2]
[1762186537690,0.14216157,168.21,168.16,8.41487782]
[1762186537885,0.14216157,168.19,168.15,0.2]
[1762186538089,8.41487782,168.18,168.15,0.2]
[1762186538311,8.41487782,168.17,168.15,0.2]
[1762186538488,12.36242105,168.19,168.15,0.2]
[1762186538691,5.94530321,168.2,168.16,8.41487782]
[1762186539005,8.41487782,168.17,168.15,0.2]
[1762186539384,0.68,168.16,168.15,0.2]
[1762186539590,5.94530321,168.2,168.15,8.61487782]
[1762186539803,5.94671741,168.16,168.15,0.2]
[1762186540323,9.09487782,168.2,168.15,8.61487782]
[1762186540501,9.93098926,168.21,168.15,0.2]
[1762186540692,8.41487782,168.19,168.15,0.2]
[1762186541093,0.68,168.19,168.15,0.2]
[1762186541300,0.82216157,168.21,168.16,8.41487782]
[1762186541599,8.41487782,168.17,168.15,0.2]
[1762186541931,8.41487782,168.17,168.1,0.2]
[1762186541932,24.97258449,168.16,168.1,0.2]
[1762186542103,8.41487782,168.11,168.1,0.2]
[1762186542291,8.41487782,168.13,168.1,0.2]
[1762186542492,29.22716814,168.17,168.11,8.41487782]
[1762186542687,29.22716814,168.17,168.1,0.2]
[1762186542688,8.41487782,168.13,168.1,0.2]
[1762186542908,8.41487782,168.12,168.1,0.2]
[1762186543097,0.14216157,168.13,168.1,0.2]
[1762186543098,0.68,168.13,168.1,0.2]
[1762186543309,0.14216157,168.14,168.1,0.2]
[1762186543623,0.82216157,168.14,168.1,0.2]
[1762186543924,0.14216157,168.12,168.1,0.2]
[1762186544312,0.82216157,168.12,168.1,0.2]
[1762186544623,8.41487782,168.11,168.1,0.2]
[1762186544799,18.20370551,168.11,168.1,0.2]
[1762186545002,19.02586708,168.11,168.1,0.2]
[1762186545504,10.61098926,168.11,168.1,0.2]
[1762186545706,39.61786708,168.11,168.1,0.2]
[1762186545899,45.56635319,168.11,168.1,0.2]
[1762186546719,16.55947537,168.11,168.1,0.2]
[1762186546912,0.14216157,168.11,168.1,0.2]
[1762186547112,6.09064768,168.11,168.1,0.2]
[1762186547310,24.97435319,168.11,168.1,0.2]
[1762186547603,9.78882769,168.14,168.1,0.2]
[1762186547799,3.92283661,168.18,168.13,8.41487782]
[1762186548005,23.95636872,168.22,168.16,8.41487782]
[1762186548233,8.41487782,168.2,168.1,0.87]
[1762186548405,0.68,168.21,168.1,0.2]
[1762186548406,0.14216157,168.16,168.1,0.2]
[1762186548606,0.68,168.2,168.1,0.87]
[1762186548916,8.41487782,168.19,168.1,0.87]
[1762186549223,10.46882769,168.2,168.11,8.41487782]
[1762186549402,8.41487782,168.17,168.11,8.41487782]
[1762186549825,5.94671741,168.16,168.12,8.41487782]
[1762186550035,0.14216157,168.13,168.1,0.2]
[1762186550211,8.41487782,168.14,168.1,0.2]
[1762186550212,8.55703939,168.14,168.1,0.2]
[1762186550603,0.14216157,168.15,168.11,8.41487782]
[1762186551029,19.02586708,168.15,168.1,0.2]
[1762186551240,9.78882769,168.13,168.1,0.2]
[1762186551447,0.14216157,168.11,168.1,0.2]
[1762186552050,3.91636247,168.13,168.1,0.2]
[1762186552051,0.14216157,168.13,168.1,0.2]
[1762186552349,0.82216157,168.13,168.1,0.2]
[1762186552942,8.41487782,168.12,168.1,0.2]
[1762186553146,19.02586708,168.11,168.03,0.2]
[1762186553336,0.14216157,168.09,168.04,8.41487782]
[1762186553528,0.14216157,168.09,168.05,8.41487782]
[1762186553734,0.14216157,168.09,168.03,0.2]
[1762186553735,0.14216157,168.09,168.04,8.41487782]
[1762186553938,0.14216157,168.07,168.03,8.61487782]
[1762186554229,0.14216157,168.07,168.03,0.2]
[1762186554423,0.14216157,168.05,168.03,0.2]
[1762186554730,0.14216157,168.07,168.03,9.28487782]
[1762186554925,18.20370551,168.1,168.04,8.41487782]
[1762186555149,0.14216157,168.09,168.05,8.41487782]
[1762186555329,0.14216157,168.09,168.04,8.41487782]
[1762186555330,0.14216157,168.08,168.04,8.41487782]
[1762186555529,9.78882769,168.1,168.05,8.41487782]
[1762186555725,9.93098926,168.11,168.07,8.41487782]
[1762186556044,0.14216157,168.09,168.07,8.41487782]
[1762186556248,20.592,168.12,168.08,8.41487782]
[1762186556556,5.94698692,168.16,168.08,0.67]
[1762186556747,5.94698692,168.16,168.11,8.41487782]
[1762186557072,10.46882769,168.16,168.08,0.67]
[1762186557351,10.46882769,168.16,168.07,8.41487782]
[1762186557352,8.55703939,168.13,168.07,8.41487782]
[1762186557557,0.14216157,168.13,168.05,0.67]
[1762186557865,0.14216157,168.13,168.11,8.41487782]
[1762186558061,5.94813228,168.12,168.1,8.41487782]
[1762186558230,0.68,168.12,168.03,0.2]
[1762186558440,0.68,168.11,168.07,8.41487782]
[1762186558665,0.14216157,168.1,168.07,8.41487782]
[1762186559048,0.82216157,168.1,168.07,8.41487782]
[1762186559462,0.82216157,168.1,168.03,0.2]
[1762186559650,0.82216157,168.1,168.07,8.41487782]
[1762186559958,0.82216157,168.1,168.03,0.2]
[1762186559959,0.14216157,168.1,168.08,8.41487782]
[1762186560165,0.14216157,168.1,168.06,8.41487782]
[1762186560389,9.93098926,168.07,168.03,0.2]
[1762186560536,0.14216157,168.04,168.03,0.2]
[1762186560742,0.14216157,168.09,168.03,8.61487782]
[1762186560959,0.14216157,168.11,168.08,8.41487782]
[1762186561353,0.14216157,168.09,168.06,8.41487782]
[1762186561550,0.14216157,168.07,168.03,0.2]
[1762186561752,8.41487782,168.05,168.03,0.2]
[1762186562086,0.14216157,168.04,168.03,0.2]
[1762186562276,0.14216157,168.09,168.03,9.29487782]
[1762186562564,22.25490487,168.09,168.03,0.2]
[1762186562754,9.93098926,168.09,168.04,8.41487782]
[1762186563137,9.78882769,168.06,168.03,0.2]
[1762186563342,0.14216157,168.04,168.03,0.2]
[1762186563742,0.81216157,168.04,168.03,0.2]
[1762186563942,19.01586708,168.04,168.03,1e-08]
[1762186564139,28.87772711,168.04,168.03,1e-08]
[1762186564363,28.88102078,168.04,168.03,1e-08]
[1762186564554,33.77013791,168.04,168.03,1e-08]
[1762186564749,28.88102078,168.04,168.03,1e-08]
[1762186564965,20.46614296,168.04,168.03,1e-08]
[1762186565471,49.47302078,168.04,168.03,1e-08]
[1762186565766,4.05635122,168.04,168.03,1e-08]
[1762186565971,6.09312562,168.04,168.03,1e-08]
[1762186566276,10.67731527,168.04,168.03,1e-08]
[1762186566448,10.00731527,168.04,168.03,1e-08]
[1762186566783,18.2735281,168.04,168.03,1e-08]
[1762186567085,32.95147292,168.04,168.03,1e-08]
[1762186567244,28.3303744,168.0,167.99,1e-08]
[1762186567447,30.52298926,167.99,167.84,0.2]
[1762186567655,0.14216157,167.97,167.94,7.59621283]
[1762186567854,3.91418965,167.96,167.94,7.59621283]
[1762186568473,3.91418965,167.95,167.9,0.68]
[1762186568775,0.14216157,167.93,167.9,7.59621283]
[1762186568976,0.14216157,167.91,167.88,7.59621283]
[1762186569270,3.91418965,167.9,167.87,0.68]
[1762186569445,5.04947236,167.94,167.87,0.68]
[1762186569647,3.93745812,167.93,167.87,0.68]
[1762186569960,4.07961969,167.92,167.87,0.68]
[1762186570165,3.93745812,167.91,167.87,0.68]
[1762186570462,3.93745812,167.91,167.84,0.2]
[1762186570463,0.14216157,167.89,167.84,0.2]
[1762186570764,3.93745812,167.88,167.86,7.79621283]
[1762186571070,4.07961969,167.87,167.86,0.2]
[1762186571462,8.84476891,167.87,167.86,8.47621283]
[1762186571666,3.93745812,167.87,167.86,8.47621283]
[1762186572174,3.93745812,167.87,167.86,0.88]
[1762186572387,1.77745812,167.87,167.86,8.47621283]
[1762186572670,0.67,167.97,167.86,16.07242566]
[1762186572851,6.62363333,167.97,167.95,7.59621283]
[1762186573051,0.14216157,167.96,167.93,7.59621283]
[1762186573251,26.41455428,167.97,167.86,0.27]
[1762186573252,5.4016273,167.97,167.95,7.59621283]
[1762186573467,0.67,167.97,167.96,7.59621283]
[1762186573667,0.67,167.97,167.88,7.66621283]
[1762186573973,0.14216157,167.96,167.94,7.59621283]
[1762186574171,9.93098926,167.94,167.86,0.2]
[1762186574382,0.14216157,167.94,167.91,7.59621283]
[1762186574693,0.14216157,167.94,167.92,7.59621283]
[1762186574987,0.14216157,167.95,167.93,7.59621283]
[1762186575160,4.79860686,167.98,167.94,7.59621283]
[1762186575365,5.95912443,168.04,167.97,7.59621283]
[1762186575366,0.67,168.03,167.97,7.59621283]
[1762186575570,14.21763997,168.03,167.89,20.662]
[1762186575766,14.21763997,168.03,167.88,7.59621283]
[1762186575767,0.67,168.03,168.02,7.59621283]
[1762186576061,20.82465638,168.07,168.02,7.59621283]
[1762186576267,28.18821283,168.03,167.96,7.59621283]
[1762186576475,9.93098926,167.99,167.89,0.07]
[1762186576677,9.93098926,167.99,167.95,7.59621283]
[1762186576981,9.78882769,168.02,167.98,7.59621283]
[1762186577183,0.67,168.01,167.98,7.59621283]
[1762186577389,0.67,168.01,167.89,0.07]
[1762186577563,9.78882769,167.98,167.86,0.2]
[1762186577763,0.14216157,167.97,167.93,7.59621283]
[1762186577968,9.78882769,167.98,167.86,0.2]
[1762186577969,9.93098926,167.95,167.86,0.2]
[1762186578172,0.14216157,167.93,167.9,7.59621283]
[1762186578372,9.93098926,167.93,167.89,7.59621283]
[1762186578580,0.67,167.92,167.89,7.59621283]
[1762186578767,0.14216157,167.91,167.86,0.2]
[1762186578975,9.93098926,167.91,167.86,0.2]
[1762186579171,17.52720209,167.89,167.86,0.2]
[1762186579373,0.14216157,167.87,167.86,0.2]
[1762186579574,17.52720209,167.87,167.86,0.2]
[1762186579879,0.81216157,167.87,167.84,0.2]
[1762186580084,23.34274084,167.85,167.84,0.2]
[1762186580278,24.01274084,167.85,167.84,0.2]
[1762186580589,21.49281572,167.85,167.84,0.2]
[1762186580906,41.24444545,167.85,167.77,4.93412614]
[1762186581063,4.94491415,167.82,167.81,4.93412614]
[1762186581396,4.94491415,167.83,167.81,4.93412614]
[1762186581566,5.61491415,167.83,167.81,4.93412614]
[1762186581769,5.61491415,167.83,167.8,4.93412614]
[1762186581976,4.94491415,167.82,167.81,4.93412614]
[1762186582182,4.94491415,167.83,167.76,0.07]
[1762186582381,4.94491415,167.81,167.74,20.592]
[1762186582689,4.94491415,167.8,167.74,0.07]
[1762186583591,4.94491415,167.78,167.7,0.07]
[1762186583887,4.94491415,167.74,167.72,4.93412614]
[1762186584092,4.94491415,167.75,167.73,4.93412614]
[1762186584498,3.95243444,167.74,167.73,4.93412614]
[1762186584973,3.95243444,167.74,167.73,5.00412614]
[1762186585170,3.95243444,167.74,167.73,4.93412614]
[1762186585467,9.66257159,167.85,167.73,5.00412614]
[1762186585768,9.66257159,167.85,167.71,11.78882768]
[1762186585769,4.94095398,167.86,167.84,4.93412614]
[1762186585972,4.94095398,167.88,167.85,4.93412614]
[1762186586196,4.94095398,167.89,167.8,4.93412614]
[1762186586488,5.61095398,167.88,167.84,4.93412614]
[1762186586665,9.78882769,167.87,167.84,4.93412614]
[1762186586867,14.72295383,167.85,167.68,1.99999999]
[1762186587101,0.14216157,167.8,167.76,4.93412614]
[1762186587393,9.78882769,167.84,167.73,20.592]
[1762186587593,9.78882769,167.84,167.82,4.93412614]
[1762186587771,0.83216157,167.84,167.73,20.662]
[1762186587970,14.8651154,167.82,167.73,20.592]
[1762186588167,0.14216157,167.79,167.75,4.93412614]
[1762186588364,0.83216157,167.79,167.74,4.93412614]
[1762186588795,0.83216157,167.79,167.73,5.665714]
[1762186588994,0.83216157,167.79,167.75,4.93412614]
[1762186589702,0.14216157,167.79,167.77,4.93412614]
[1762186589885,9.93098926,167.79,167.73,5.665714]
[1762186590085,9.93098926,167.79,167.73,10.59984014]
[1762186590274,15.89094589,167.79,167.74,4.93412614]
[1762186590477,20.592,167.82,167.73,5.665714]
[1762186590675,0.69,167.88,167.81,7.17746893]
[1762186590882,7.86746893,167.87,167.77,20.592]
[1762186591098,7.86746893,167.87,167.8,7.17746893]
[1762186591099,9.78882769,167.86,167.8,7.17746893]
[1762186591297,9.78882769,167.86,167.81,7.17746893]
[1762186591298,0.14216157,167.85,167.81,7.17746893]
[1762186591601,20.592,167.87,167.84,7.17746893]
[1762186591899,0.14216157,167.86,167.84,7.17746893]
[1762186592075,10.62098926,167.86,167.8,7.17746893]
[1762186592275,0.83216157,167.86,167.83,7.17746893]
[1762186592681,18.22341762,167.9,167.85,7.17746893]
[1762186592884,0.67,167.9,167.88,7.17746893]
[1762186593285,9.78882769,167.92,167.89,7.17746893]
[1762186593509,4.92995813,167.94,167.91,7.17746893]
[1762186593510,0.67,167.94,167.91,7.17746893]
[1762186593813,3.11504326,167.98,167.93,7.17746893]
[1762186593814,17.69419716,167.97,167.93,7.17746893]
[1762186594107,17.69419716,167.97,167.84,20.662]
[1762186594108,6.62352638,167.97,167.84,20.662]
[1762186594307,0.14216157,167.93,167.91,7.17746893]
[1762186594478,6.62386485,167.96,167.92,7.17746893]
[1762186594677,6.62386485,167.96,167.82,0.07]
[1762186594678,20.592,167.94,167.82,0.07]
[1762186594983,0.14216157,167.93,167.91,7.17746893]
[1762186595496,0.81216157,167.93,167.91,7.17746893]
[1762186595699,14.71878582,167.96,167.92,7.17746893]
[1762186595995,0.14216157,167.95,167.93,7.17746893]
[1762186596501,0.81216157,167.95,167.94,7.17746893]
[1762186596709,5.59995813,167.99,167.94,7.17746893]
[1762186597002,17.54353538,168.01,167.98,7.17746893]
[1762186597307,0.67,167.99,167.91,20.662]
[1762186597505,0.67,167.99,167.88,9.78882769]
[1762186597506,24.54332136,167.98,167.88,9.78882769]
[1762186597709,20.73416157,167.92,167.78,0.07]
[1762186597873,9.78882769,167.89,167.78,0.07]
[1762186598078,4.09348293,167.88,167.79,20.592]
[1762186598378,3.95132136,167.87,167.84,7.17746893]
[1762186598584,3.95132136,167.86,167.78,26.62215168]
[1762186598777,4.09694618,167.89,167.85,7.17746893]
[1762186599004,4.09694618,167.89,167.83,7.17746893]
[1762186599005,0.14216157,167.87,167.83,7.17746893]
[1762186599301,3.95550694,167.86,167.85,7.17746893]
[1762186599621,3.95550694,167.88,167.85,7.17746893]
[1762186599806,0.67,167.88,167.79,20.592]
[1762186599981,0.67,167.88,167.86,7.17746893]
[1762186600175,0.67,167.88,167.87,7.17746893]
[1762186600376,9.78882769,167.94,167.87,7.17746893]
[1762186600575,3.95637726,167.93,167.85,20.592]
[1762186600784,3.95650966,167.92,167.85,20.592]
[1762186600998,0.67,167.94,167.91,7.17746893]
[1762186601191,3.95619627,167.93,167.86,9.85882769]
[1762186601386,3.95804322,167.96,167.86,30.45082769]